[Event "*** Titled Tuesday Blitz"]
[Site "Chess.com"]
[Date "2019.11.05"]
[Round "5"]
[White "cukus"]
[Black "gemarin"]
[Result "1-0"]
[WhiteElo "2452"]
[BlackElo "2124"]
[TimeControl "180+2"]
[EndTime "14:03:43 PST"]
[Termination "cukus won by resignation"]

1. e4 {[%clk 0:03:01.9]} 1... c5 {[%clk 0:03:00.1]} 2. Nf3 {[%clk 0:02:58.5]}
2... Nc6 {[%clk 0:02:55]} 3. d4 {[%clk 0:02:56.8]} 3... cxd4 {[%clk 0:02:55.5]}
4. Nxd4 {[%clk 0:02:58.7]} 4... Nf6 {[%clk 0:02:55.2]} 5. Nc3 {[%clk 0:02:59.6]}
5... d6 {[%clk 0:02:55.9]} 6. Bg5 {[%clk 0:02:57.9]} 6... e6 {[%clk 0:02:54.4]}
7. Qd3 {[%clk 0:02:58.5]} 7... h6 {[%clk 0:02:45.2]} 8. Bh4 {[%clk 0:02:49.5]}
8... a6 {[%clk 0:02:37.1]} 9. O-O-O {[%clk 0:02:45.9]} 9... Bd7 {[%clk
0:02:37.9]} 10. f4 {[%clk 0:02:42.2]} 10... g5 {[%clk 0:02:27.7]} 11. fxg5
{[%clk 0:02:28.3]} 11... Nh7 {[%clk 0:02:27.3]} 12. Nxc6 {[%clk 0:02:24.2]}
12... Bxc6 {[%clk 0:02:25.8]} 13. Kb1 {[%clk 0:02:18.8]} 13... hxg5 {[%clk
0:02:15.7]} 14. Bg3 {[%clk 0:02:17.6]} 14... Nf6 {[%clk 0:02:14]} 15. Be2 {[%clk
0:02:14.7]} 15... Be7 {[%clk 0:02:00.6]} 16. Rhf1 {[%clk 0:02:10.9]} 16... Rh6
{[%clk 0:01:59.9]} 17. Qe3 {[%clk 0:02:02.6]} 17... Rg6 {[%clk 0:01:59.1]} 18.
e5 {[%clk 0:02:01.1]} 18... Nd5 {[%clk 0:01:58.9]} 19. Nxd5 {[%clk 0:01:58.6]}
19... Bxd5 {[%clk 0:01:51.2]} 20. exd6 {[%clk 0:01:59.2]} 20... Bf6 {[%clk
0:01:40.1]} 21. Rxd5 {[%clk 0:01:54.8]} 21... Qb6 {[%clk 0:01:28.2]} 22. Qxb6
{[%clk 0:01:54.3]} 1-0

[Event "*** Titled Tuesday Blitz"]
[Site "Chess.com"]
[Date "2019.11.05"]
[Round "5"]
[White "Guenplen"]
[Black "Alex_Terzi"]
[Result "1-0"]
[WhiteElo "2948"]
[BlackElo "2506"]
[TimeControl "180+2"]
[EndTime "14:03:47 PST"]
[Termination "Guenplen won by resignation"]

1. Nf3 {[%clk 0:03:01.9]} 1... Nf6 {[%clk 0:03:00.8]} 2. c4 {[%clk 0:03:02.9]}
2... c5 {[%clk 0:03:02.2]} 3. Nc3 {[%clk 0:03:03.9]} 3... Nc6 {[%clk 0:03:03.4]}
4. e3 {[%clk 0:03:05]} 4... g6 {[%clk 0:02:51]} 5. d4 {[%clk 0:03:05.4]} 5...
cxd4 {[%clk 0:02:51.6]} 6. exd4 {[%clk 0:03:07.3]} 6... d5 {[%clk 0:02:51.7]} 7.
cxd5 {[%clk 0:03:09.2]} 7... Nxd5 {[%clk 0:02:53.1]} 8. Qb3 {[%clk 0:03:10.8]}
8... Nxc3 {[%clk 0:02:50.2]} 9. Bc4 {[%clk 0:03:11.4]} 9... Nd5 {[%clk
0:02:34.8]} 10. Bxd5 {[%clk 0:03:12.4]} 10... e6 {[%clk 0:02:36.1]} 11. Bxc6+
{[%clk 0:03:13.5]} 11... bxc6 {[%clk 0:02:36.8]} 12. O-O {[%clk 0:03:15.4]}
12... Bg7 {[%clk 0:02:34.4]} 13. Bf4 {[%clk 0:03:16.4]} 13... O-O {[%clk
0:02:33.3]} 14. Qe3 {[%clk 0:03:16.9]} 14... c5 {[%clk 0:02:09.5]} 15. dxc5
{[%clk 0:03:16.7]} 15... Bxb2 {[%clk 0:02:10]} 16. Rab1 {[%clk 0:03:13.5]} 16...
Qf6 {[%clk 0:01:59.1]} 17. Rxb2 {[%clk 0:03:00.2]} 17... Qxb2 {[%clk 0:01:58]}
18. Be5 {[%clk 0:03:01.5]} 18... Qc2 {[%clk 0:01:26.2]} 19. Qh6 {[%clk
0:02:48.3]} 19... f6 {[%clk 0:01:24.8]} 20. Ng5 {[%clk 0:02:49.4]} 20... Rf7
{[%clk 0:00:42.4]} 21. Nxf7 {[%clk 0:02:50]} 21... Kxf7 {[%clk 0:00:44.3]} 22.
Qxh7+ {[%clk 0:02:49.6]} 22... Kf8 {[%clk 0:00:37.9]} 23. Bd6+ {[%clk
0:02:50.5]} 1-0

[Event "*** Titled Tuesday Blitz"]
[Site "Chess.com"]
[Date "2019.11.05"]
[Round "5"]
[White "FairChess_on_YouTube"]
[Black "temus_galaktionov"]
[Result "1-0"]
[WhiteElo "3024"]
[BlackElo "2689"]
[TimeControl "180+2"]
[EndTime "14:03:52 PST"]
[Termination "FairChess_on_YouTube won by resignation"]

1. e4 {[%clk 0:03:01.9]} 1... c6 {[%clk 0:03:01.9]} 2. Nc3 {[%clk 0:03:01.3]}
2... g6 {[%clk 0:03:03.5]} 3. d4 {[%clk 0:03:01.7]} 3... Bg7 {[%clk 0:03:05.4]}
4. Be3 {[%clk 0:03:02.6]} 4... d6 {[%clk 0:02:58.6]} 5. Qd2 {[%clk 0:03:03]}
5... Nd7 {[%clk 0:02:56.4]} 6. h4 {[%clk 0:03:01.1]} 6... e5 {[%clk 0:02:47.1]}
7. h5 {[%clk 0:02:56.2]} 7... Qa5 {[%clk 0:02:44.3]} 8. O-O-O {[%clk 0:02:50.6]}
8... b5 {[%clk 0:02:40.3]} 9. Kb1 {[%clk 0:02:48.6]} 9... b4 {[%clk 0:02:36.9]}
10. Nce2 {[%clk 0:02:49.5]} 10... Ngf6 {[%clk 0:02:37.2]} 11. h6 {[%clk
0:02:41.6]} 11... Bf8 {[%clk 0:02:37.2]} 12. f3 {[%clk 0:02:40.9]} 12... Be7
{[%clk 0:02:35.1]} 13. Nh3 {[%clk 0:02:36.4]} 13... O-O {[%clk 0:02:29.4]} 14.
Ng5 {[%clk 0:02:37.2]} 14... Nb6 {[%clk 0:02:25.9]} 15. Nc1 {[%clk 0:02:38.1]}
15... Ba6 {[%clk 0:02:16.6]} 16. Nb3 {[%clk 0:02:32.5]} 16... Qa4 {[%clk
0:02:17.1]} 17. dxe5 {[%clk 0:02:28.4]} 17... dxe5 {[%clk 0:02:15.1]} 18. Nc5
{[%clk 0:02:25.2]} 18... Bxc5 {[%clk 0:02:13]} 19. Bxc5 {[%clk 0:02:25.9]} 19...
Bxf1 {[%clk 0:02:06.1]} 20. b3 {[%clk 0:02:21.7]} 20... Nc4 {[%clk 0:01:51.5]}
21. bxa4 {[%clk 0:02:21.9]} 21... Nxd2+ {[%clk 0:01:51.5]} 22. Rxd2 {[%clk
0:02:23.8]} 22... Bc4 {[%clk 0:01:40.7]} 23. Bxf8 {[%clk 0:02:24.5]} 23... Kxf8
{[%clk 0:01:39.1]} 24. Rd6 {[%clk 0:02:25.4]} 24... Ne8 {[%clk 0:01:29.7]} 25.
Rxc6 {[%clk 0:02:25.5]} 25... Be6 {[%clk 0:01:24.4]} 26. Nxh7+ {[%clk
0:02:25.3]} 26... Kg8 {[%clk 0:01:12.2]} 27. Ng5 {[%clk 0:02:27.2]} 27... Bd7
{[%clk 0:01:12.3]} 28. h7+ {[%clk 0:02:27.6]} 1-0

[Event "*** Titled Tuesday Blitz"]
[Site "Chess.com"]
[Date "2019.11.05"]
[Round "5"]
[White "GrandGlacier"]
[Black "albano87"]
[Result "1-0"]
[WhiteElo "2522"]
[BlackElo "2008"]
[TimeControl "180+2"]
[EndTime "14:04:03 PST"]
[Termination "GrandGlacier won by resignation"]

1. e4 {[%clk 0:03:01.9]} 1... c5 {[%clk 0:03:00.1]} 2. Nf3 {[%clk 0:03:01.1]}
2... Nc6 {[%clk 0:03:00.7]} 3. d4 {[%clk 0:03:01.8]} 3... cxd4 {[%clk
0:03:01.9]} 4. Nxd4 {[%clk 0:03:03.7]} 4... Nf6 {[%clk 0:03:02.8]} 5. Nc3 {[%clk
0:03:05]} 5... d6 {[%clk 0:03:03.8]} 6. Bg5 {[%clk 0:03:04.8]} 6... Bd7 {[%clk
0:03:04.7]} 7. Bxf6 {[%clk 0:03:04.5]} 7... gxf6 {[%clk 0:03:05.6]} 8. Qd2
{[%clk 0:03:05.9]} 8... Rc8 {[%clk 0:03:06.1]} 9. O-O-O {[%clk 0:03:06.9]} 9...
Rg8 {[%clk 0:03:07.4]} 10. Kb1 {[%clk 0:03:06.2]} 10... Nxd4 {[%clk 0:03:07.5]}
11. Qxd4 {[%clk 0:03:06.7]} 11... a6 {[%clk 0:03:07.6]} 12. Nd5 {[%clk
0:03:02.8]} 12... f5 {[%clk 0:03:04.9]} 13. e5 {[%clk 0:02:55.8]} 13... dxe5
{[%clk 0:02:36.5]} 14. Qxe5 {[%clk 0:02:53.7]} 14... Bg7 {[%clk 0:02:30.2]} 15.
Qe3 {[%clk 0:02:42.9]} 15... e6 {[%clk 0:02:21.5]} 16. Nb6 {[%clk 0:02:39.5]}
16... f4 {[%clk 0:01:58.7]} 17. Qb3 {[%clk 0:02:28.9]} 17... Rc7 {[%clk
0:01:56.7]} 18. Bc4 {[%clk 0:02:07.3]} 18... Qe7 {[%clk 0:01:51]} 19. Rhe1
{[%clk 0:02:01.6]} 19... Bc6 {[%clk 0:01:35.7]} 20. Bxe6 {[%clk 0:02:00]} 20...
Kf8 {[%clk 0:01:25.7]} 21. Bd7 {[%clk 0:01:51.6]} 21... Rxd7 {[%clk 0:01:19.6]}
22. Nxd7+ {[%clk 0:01:52.2]} 1-0

[Event "*** Titled Tuesday Blitz"]
[Site "Chess.com"]
[Date "2019.11.05"]
[Round "5"]
[White "xamax2000"]
[Black "Philosopherrr"]
[Result "1-0"]
[WhiteElo "2575"]
[BlackElo "2352"]
[TimeControl "180+2"]
[EndTime "14:04:14 PST"]
[Termination "xamax2000 won by resignation"]

1. e4 {[%clk 0:03:01.9]} 1... e5 {[%clk 0:02:58.2]} 2. Nf3 {[%clk 0:03:03.1]}
2... Nc6 {[%clk 0:02:58.5]} 3. Bb5 {[%clk 0:03:04.6]} 3... a6 {[%clk 0:02:58.9]}
4. Ba4 {[%clk 0:03:05.8]} 4... Nf6 {[%clk 0:03:00]} 5. O-O {[%clk 0:03:07.4]}
5... Be7 {[%clk 0:03:01.5]} 6. Re1 {[%clk 0:03:08.9]} 6... b5 {[%clk 0:03:02.9]}
7. Bb3 {[%clk 0:03:10.3]} 7... d6 {[%clk 0:03:04.4]} 8. c3 {[%clk 0:03:11.8]}
8... O-O {[%clk 0:03:05.8]} 9. h3 {[%clk 0:03:13.3]} 9... Bb7 {[%clk 0:03:07.4]}
10. d4 {[%clk 0:03:14.7]} 10... Re8 {[%clk 0:03:09]} 11. Nbd2 {[%clk 0:03:15.6]}
11... exd4 {[%clk 0:03:10.1]} 12. cxd4 {[%clk 0:03:15.4]} 12... Nd7 {[%clk
0:03:11.5]} 13. Nf1 {[%clk 0:03:16.2]} 13... Na5 {[%clk 0:03:12.9]} 14. Bc2
{[%clk 0:03:16.7]} 14... Bf6 {[%clk 0:03:14.4]} 15. Ng3 {[%clk 0:03:15.9]} 15...
g6 {[%clk 0:03:15.2]} 16. Bh6 {[%clk 0:03:17.4]} 16... c5 {[%clk 0:03:14]} 17.
e5 {[%clk 0:03:18.7]} 17... dxe5 {[%clk 0:03:06.4]} 18. dxc5 {[%clk 0:03:19.4]}
18... Nc6 {[%clk 0:02:22.3]} 19. Ne4 {[%clk 0:03:14.4]} 19... Bg7 {[%clk
0:02:08.2]} 20. Bxg7 {[%clk 0:02:42.8]} 20... Kxg7 {[%clk 0:02:03.2]} 21. Nd6
{[%clk 0:02:44.7]} 21... Nxc5 {[%clk 0:01:53.5]} 22. Nxe8+ {[%clk 0:02:45.4]}
22... Qxe8 {[%clk 0:01:54.2]} 23. Qd6 {[%clk 0:02:31.4]} 23... Qf8 {[%clk
0:01:53.8]} 24. Qxf8+ {[%clk 0:02:28.5]} 24... Rxf8 {[%clk 0:01:54.7]} 25. Nxe5
{[%clk 0:02:29.6]} 25... Nd4 {[%clk 0:01:55.9]} 26. Rac1 {[%clk 0:02:25.5]}
26... Re8 {[%clk 0:01:49.7]} 27. Bxg6 {[%clk 0:02:05.9]} 1-0

[Event "*** Titled Tuesday Blitz"]
[Site "Chess.com"]
[Date "2019.11.05"]
[Round "5"]
[White "justantan"]
[Black "vlad10898"]
[Result "1-0"]
[WhiteElo "2853"]
[BlackElo "2660"]
[TimeControl "180+2"]
[EndTime "14:04:20 PST"]
[Termination "justantan won by resignation"]

1. e4 {[%clk 0:02:59.2]} 1... c5 {[%clk 0:03:01]} 2. Nf3 {[%clk 0:03:00]} 2...
d6 {[%clk 0:03:02.5]} 3. d4 {[%clk 0:03:00.8]} 3... cxd4 {[%clk 0:03:04.4]} 4.
Nxd4 {[%clk 0:03:02.4]} 4... Nf6 {[%clk 0:03:05.9]} 5. Nc3 {[%clk 0:03:03.8]}
5... a6 {[%clk 0:03:07.4]} 6. h3 {[%clk 0:03:04.3]} 6... e5 {[%clk 0:03:08.1]}
7. Nde2 {[%clk 0:03:05.1]} 7... b5 {[%clk 0:03:09.4]} 8. Ng3 {[%clk 0:03:05.5]}
8... Nbd7 {[%clk 0:03:05.7]} 9. Bd3 {[%clk 0:03:02.6]} 9... Nb6 {[%clk
0:02:51.8]} 10. Bg5 {[%clk 0:03:01.9]} 10... Be7 {[%clk 0:02:51]} 11. Qf3 {[%clk
0:03:02.5]} 11... g6 {[%clk 0:02:43.6]} 12. O-O {[%clk 0:02:59.4]} 12... Be6
{[%clk 0:02:42.5]} 13. Rfd1 {[%clk 0:02:57.4]} 13... h6 {[%clk 0:02:36.4]} 14.
Bxf6 {[%clk 0:02:57.7]} 14... Bxf6 {[%clk 0:02:37.5]} 15. a4 {[%clk 0:02:46.4]}
15... b4 {[%clk 0:02:16.7]} 16. Na2 {[%clk 0:02:40]} 16... a5 {[%clk 0:02:05.7]}
17. Bb5+ {[%clk 0:02:40.4]} 17... Kf8 {[%clk 0:02:06.1]} 18. c3 {[%clk 0:02:34]}
18... bxc3 {[%clk 0:01:48.8]} 19. Nxc3 {[%clk 0:02:34.5]} 19... Kg7 {[%clk
0:01:50.4]} 20. Rd3 {[%clk 0:02:33.8]} 20... Qc7 {[%clk 0:01:42.5]} 21. Rad1
{[%clk 0:02:32.7]} 21... Rhd8 {[%clk 0:01:30]} 22. Nd5 {[%clk 0:02:28.2]} 22...
Nxd5 {[%clk 0:01:12.6]} 23. exd5 {[%clk 0:02:29.3]} 23... Bd7 {[%clk 0:01:14.3]}
24. Rc3 {[%clk 0:02:21.6]} 24... Qb6 {[%clk 0:01:13.2]} 25. Bxd7 {[%clk
0:02:18.6]} 25... Rxd7 {[%clk 0:01:14.2]} 26. Qg4 {[%clk 0:02:19.7]} 26... Qxb2
{[%clk 0:01:04.7]} 27. Nh5+ {[%clk 0:02:13.4]} 1-0

[Event "*** Titled Tuesday Blitz"]
[Site "Chess.com"]
[Date "2019.11.05"]
[Round "5"]
[White "WeAintSurePal"]
[Black "Pultis"]
[Result "1-0"]
[WhiteElo "2479"]
[BlackElo "2700"]
[TimeControl "180+2"]
[EndTime "14:04:27 PST"]
[Termination "WeAintSurePal won by resignation"]

1. e4 {[%clk 0:02:58.6]} 1... c6 {[%clk 0:03:00.2]} 2. d4 {[%clk 0:02:59.1]}
2... d5 {[%clk 0:03:01.6]} 3. e5 {[%clk 0:03:01]} 3... Bf5 {[%clk 0:03:02.7]} 4.
Nf3 {[%clk 0:03:02.2]} 4... e6 {[%clk 0:03:03.8]} 5. Be2 {[%clk 0:03:03.5]} 5...
Ne7 {[%clk 0:03:05.4]} 6. O-O {[%clk 0:03:04.9]} 6... Ng6 {[%clk 0:03:07]} 7. c4
{[%clk 0:03:06.1]} 7... dxc4 {[%clk 0:03:06.5]} 8. Bxc4 {[%clk 0:03:02.2]} 8...
Nd7 {[%clk 0:03:07.9]} 9. Nc3 {[%clk 0:03:02.7]} 9... Be7 {[%clk 0:03:08.4]} 10.
Qe2 {[%clk 0:03:01.1]} 10... b5 {[%clk 0:03:08.2]} 11. Bb3 {[%clk 0:03:00.9]}
11... a6 {[%clk 0:03:06.2]} 12. a3 {[%clk 0:03:01.2]} 12... O-O {[%clk
0:03:07.1]} 13. Be3 {[%clk 0:03:00.6]} 13... c5 {[%clk 0:03:07]} 14. Rad1 {[%clk
0:02:49.9]} 14... c4 {[%clk 0:03:08]} 15. Bc2 {[%clk 0:02:50.2]} 15... Bxc2
{[%clk 0:03:09.5]} 16. Qxc2 {[%clk 0:02:51.7]} 16... Nb6 {[%clk 0:03:11.2]} 17.
Qe4 {[%clk 0:02:46.8]} 17... Nd5 {[%clk 0:03:11.6]} 18. Nxd5 {[%clk 0:02:46]}
18... Qxd5 {[%clk 0:03:13.5]} 19. Qg4 {[%clk 0:02:46.3]} 19... Rfc8 {[%clk
0:03:10.7]} 20. h4 {[%clk 0:02:46.7]} 20... c3 {[%clk 0:03:11.5]} 21. bxc3
{[%clk 0:02:46.2]} 21... Rxc3 {[%clk 0:03:10.9]} 22. h5 {[%clk 0:02:46.2]} 22...
Nf8 {[%clk 0:03:11.8]} 23. Bg5 {[%clk 0:02:46.5]} 23... Bxg5 {[%clk 0:03:11.6]}
24. Qxg5 {[%clk 0:02:47]} 24... h6 {[%clk 0:03:11.4]} 25. Qf4 {[%clk 0:02:42.4]}
25... Rac8 {[%clk 0:03:09.6]} 26. Nh2 {[%clk 0:02:40]} 26... Rxa3 {[%clk
0:03:07.1]} 27. Ng4 {[%clk 0:02:40.7]} 27... Nh7 {[%clk 0:03:07.3]} 28. Ne3
{[%clk 0:02:33.3]} 28... Qd8 {[%clk 0:03:07.2]} 29. d5 {[%clk 0:02:34]} 29...
exd5 {[%clk 0:03:07.2]} 30. Rxd5 {[%clk 0:02:34.4]} 30... Qg5 {[%clk 0:03:07.6]}
31. Qd4 {[%clk 0:02:34.2]} 31... Ra4 {[%clk 0:03:01.9]} 32. Qd3 {[%clk
0:02:28.7]} 32... Qf4 {[%clk 0:02:55.8]} 33. Rd8+ {[%clk 0:02:20.1]} 33... Rxd8
{[%clk 0:02:51.7]} 34. Qxd8+ {[%clk 0:02:20.7]} 34... Nf8 {[%clk 0:02:52.2]} 35.
Nd5 {[%clk 0:02:18.6]} 35... Qxe5 {[%clk 0:02:14.5]} 36. Ne7+ {[%clk 0:02:16.9]}
36... Qxe7 {[%clk 0:02:15.7]} 37. Qxe7 {[%clk 0:02:17.6]} 37... Ne6 {[%clk
0:02:16.9]} 38. Rc1 {[%clk 0:02:16.7]} 38... Nf4 {[%clk 0:02:07.9]} 39. Rc8+
{[%clk 0:02:13.8]} 39... Kh7 {[%clk 0:02:09.4]} 40. Qxf7 {[%clk 0:02:13.1]}
40... Ne2+ {[%clk 0:02:10.8]} 41. Kf1 {[%clk 0:02:11.3]} 1-0

[Event "*** Titled Tuesday Blitz"]
[Site "Chess.com"]
[Date "2019.11.05"]
[Round "5"]
[White "MikaelyanArman"]
[Black "CarlssonLudvig"]
[Result "1-0"]
[WhiteElo "2730"]
[BlackElo "2485"]
[TimeControl "180+2"]
[EndTime "14:04:32 PST"]
[Termination "MikaelyanArman won by resignation"]

1. e4 {[%clk 0:03:01]} 1... e5 {[%clk 0:03:00.4]} 2. Nf3 {[%clk 0:02:59.9]} 2...
Nc6 {[%clk 0:03:01.4]} 3. Bb5 {[%clk 0:02:59.3]} 3... Nf6 {[%clk 0:03:02.1]} 4.
d3 {[%clk 0:02:58.1]} 4... Bc5 {[%clk 0:02:55.3]} 5. O-O {[%clk 0:02:57.8]} 5...
Nd4 {[%clk 0:02:55.6]} 6. Nxd4 {[%clk 0:02:58.2]} 6... Bxd4 {[%clk 0:02:57.5]}
7. c3 {[%clk 0:02:59.4]} 7... Bb6 {[%clk 0:02:57.9]} 8. Na3 {[%clk 0:03:00.9]}
8... c6 {[%clk 0:02:56.8]} 9. Ba4 {[%clk 0:03:01.7]} 9... O-O {[%clk 0:02:57.6]}
10. Bg5 {[%clk 0:02:59.8]} 10... h6 {[%clk 0:02:57.8]} 11. Bh4 {[%clk
0:03:00.6]} 11... d5 {[%clk 0:02:53.5]} 12. Qe2 {[%clk 0:02:53.6]} 12... dxe4
{[%clk 0:02:51.6]} 13. dxe4 {[%clk 0:02:55.5]} 13... Bg4 {[%clk 0:02:50.8]} 14.
Qc2 {[%clk 0:02:47.1]} 14... Qe7 {[%clk 0:02:40.5]} 15. Nc4 {[%clk 0:02:47.4]}
15... Bc7 {[%clk 0:02:41]} 16. Ne3 {[%clk 0:02:48.5]} 16... Bh5 {[%clk
0:02:24.7]} 17. Nf5 {[%clk 0:02:48.3]} 17... Qd8 {[%clk 0:02:14.4]} 18. Rad1
{[%clk 0:02:46.8]} 18... Bxd1 {[%clk 0:02:15.3]} 19. Rxd1 {[%clk 0:02:48.7]}
19... Qxd1+ {[%clk 0:01:39.4]} 20. Qxd1 {[%clk 0:02:47.9]} 20... Nxe4 {[%clk
0:01:40.6]} 21. Qd7 {[%clk 0:02:35.4]} 21... Bb6 {[%clk 0:01:39.6]} 22. Nxh6+
{[%clk 0:02:33.7]} 22... gxh6 {[%clk 0:01:39.6]} 23. Qg4+ {[%clk 0:02:32.2]}
23... Ng5 {[%clk 0:01:40.5]} 24. Bxg5 {[%clk 0:02:32.1]} 24... hxg5 {[%clk
0:01:41.9]} 25. Qxg5+ {[%clk 0:02:34]} 25... Kh8 {[%clk 0:01:43.4]} 26. Bc2
{[%clk 0:02:26.3]} 26... e4 {[%clk 0:01:33.4]} 27. Bxe4 {[%clk 0:02:21.9]} 27...
f5 {[%clk 0:01:34.3]} 28. Qh6+ {[%clk 0:02:18]} 28... Kg8 {[%clk 0:01:35]} 29.
Qg6+ {[%clk 0:02:19.9]} 29... Kh8 {[%clk 0:01:34.9]} 30. Bxf5 {[%clk 0:02:21.7]}
30... Rxf5 {[%clk 0:01:29.6]} 31. Qxf5 {[%clk 0:02:23.6]} 31... Rd8 {[%clk
0:01:31]} 32. h4 {[%clk 0:02:19.4]} 32... Rd1+ {[%clk 0:01:30.6]} 33. Kh2 {[%clk
0:02:19.6]} 33... Rf1 {[%clk 0:01:32.5]} 34. Qc8+ {[%clk 0:02:18.7]} 34... Kh7
{[%clk 0:01:28]} 35. Qxb7+ {[%clk 0:02:20.6]} 35... Kg6 {[%clk 0:01:28]} 36.
Qxc6+ {[%clk 0:02:20.9]} 36... Kh5 {[%clk 0:01:29.4]} 37. Qb5+ {[%clk
0:02:21.1]} 1-0

[Event "*** Titled Tuesday Blitz"]
[Site "Chess.com"]
[Date "2019.11.05"]
[Round "5"]
[White "Crazy_girl99"]
[Black "gmcorrales"]
[Result "1/2-1/2"]
[WhiteElo "2516"]
[BlackElo "2851"]
[TimeControl "180+2"]
[EndTime "14:04:56 PST"]
[Termination "Game drawn by repetition"]

1. e4 {[%clk 0:03:01.9]} 1... d5 {[%clk 0:03:00.4]} 2. exd5 {[%clk 0:03:01.5]}
2... Qxd5 {[%clk 0:03:02.3]} 3. Nc3 {[%clk 0:03:01.2]} 3... Qa5 {[%clk 0:03:03]}
4. d4 {[%clk 0:03:01.8]} 4... c6 {[%clk 0:03:04.2]} 5. Bd2 {[%clk 0:03:02.7]}
5... Nf6 {[%clk 0:03:05.3]} 6. Bc4 {[%clk 0:03:02.3]} 6... Bf5 {[%clk
0:03:06.3]} 7. Nf3 {[%clk 0:02:59.8]} 7... e6 {[%clk 0:03:07.4]} 8. Nd5 {[%clk
0:03:00.5]} 8... Qd8 {[%clk 0:03:08.1]} 9. Nxf6+ {[%clk 0:03:01.7]} 9... gxf6
{[%clk 0:03:10]} 10. Qe2 {[%clk 0:03:01.5]} 10... Nd7 {[%clk 0:03:10]} 11. O-O-O
{[%clk 0:03:01.3]} 11... Nb6 {[%clk 0:03:05.4]} 12. Bb3 {[%clk 0:03:01]} 12...
Bd6 {[%clk 0:03:06]} 13. Nh4 {[%clk 0:02:59.6]} 13... Bg6 {[%clk 0:03:06.9]} 14.
Nxg6 {[%clk 0:03:00.4]} 14... hxg6 {[%clk 0:03:08.8]} 15. h4 {[%clk 0:03:01.3]}
15... Qc7 {[%clk 0:03:08.4]} 16. h5 {[%clk 0:03:01.6]} 16... gxh5 {[%clk
0:03:08.7]} 17. Rxh5 {[%clk 0:02:45.9]} 17... Rxh5 {[%clk 0:03:09.6]} 18. Qxh5
{[%clk 0:02:47.8]} 18... O-O-O {[%clk 0:03:10.5]} 19. Ba5 {[%clk 0:02:48.7]}
19... c5 {[%clk 0:03:02.2]} 20. dxc5 {[%clk 0:02:28.6]} 20... Bf4+ {[%clk
0:03:03]} 21. Kb1 {[%clk 0:02:27.5]} 21... Rxd1+ {[%clk 0:03:03]} 22. Qxd1
{[%clk 0:02:28.8]} 22... Qxc5 {[%clk 0:03:04.5]} 23. Bc3 {[%clk 0:02:27.3]}
23... Be5 {[%clk 0:03:00.4]} 24. Bxe5 {[%clk 0:02:24.4]} 24... Qxe5 {[%clk
0:03:02.3]} 25. a3 {[%clk 0:02:22.6]} 25... f5 {[%clk 0:03:02]} 26. Qh5 {[%clk
0:02:22.5]} 26... Qf6 {[%clk 0:02:59.1]} 27. Qf3 {[%clk 0:02:20.6]} 27... Nd7
{[%clk 0:02:55.4]} 28. Qe3 {[%clk 0:02:20.8]} 28... b6 {[%clk 0:02:55.5]} 29.
Qd3 {[%clk 0:02:21.2]} 29... Nc5 {[%clk 0:02:55.2]} 30. Qb5 {[%clk 0:02:08.1]}
30... Qe5 {[%clk 0:02:42.4]} 31. Qe8+ {[%clk 0:02:07.4]} 31... Kb7 {[%clk
0:02:41]} 32. Qxf7+ {[%clk 0:02:08.4]} 32... Ka6 {[%clk 0:02:41.9]} 33. f3
{[%clk 0:01:48.4]} 33... Nxb3 {[%clk 0:02:32.1]} 34. cxb3 {[%clk 0:01:49]} 34...
b5 {[%clk 0:02:28.2]} 35. Qe7 {[%clk 0:01:46.9]} 35... Kb6 {[%clk 0:02:28.2]}
36. Qb4 {[%clk 0:01:46.1]} 36... a5 {[%clk 0:02:28.5]} 37. Qf8 {[%clk
0:01:43.9]} 37... Qd5 {[%clk 0:02:27.5]} 38. Qb8+ {[%clk 0:01:41.7]} 38... Ka6
{[%clk 0:02:28.6]} 39. Qc8+ {[%clk 0:01:42.1]} 39... Kb6 {[%clk 0:02:29.4]} 40.
Qb8+ {[%clk 0:01:36.3]} 40... Ka6 {[%clk 0:02:25.4]} 41. Qc8+ {[%clk 0:00:59.8]}
41... Kb6 {[%clk 0:02:26.5]} 42. Qb8+ {[%clk 0:01:00.9]} 1/2-1/2

[Event "*** Titled Tuesday Blitz"]
[Site "Chess.com"]
[Date "2019.11.05"]
[Round "5"]
[White "PNEPaul"]
[Black "LuisFSiles"]
[Result "0-1"]
[WhiteElo "1730"]
[BlackElo "2307"]
[TimeControl "180+2"]
[EndTime "14:05:10 PST"]
[Termination "LuisFSiles won by resignation"]

1. e4 {[%clk 0:02:35.3]} 1... e5 {[%clk 0:02:59.5]} 2. Nf3 {[%clk 0:02:34.9]}
2... Nc6 {[%clk 0:03:00.3]} 3. Bc4 {[%clk 0:02:35.7]} 3... Nf6 {[%clk
0:03:00.1]} 4. Ng5 {[%clk 0:02:36]} 4... d5 {[%clk 0:02:57.7]} 5. exd5 {[%clk
0:02:36.9]} 5... b5 {[%clk 0:02:57.4]} 6. Bxb5 {[%clk 0:02:31.7]} 6... Qxd5
{[%clk 0:02:57.8]} 7. Bxc6+ {[%clk 0:02:31.1]} 7... Qxc6 {[%clk 0:02:58.3]} 8.
Qf3 {[%clk 0:02:29.1]} 8... e4 {[%clk 0:02:44.9]} 9. Qc3 {[%clk 0:02:28.4]} 9...
Bc5 {[%clk 0:02:42]} 10. b4 {[%clk 0:02:07.5]} 10... h6 {[%clk 0:01:59.8]} 11.
Nh3 {[%clk 0:01:40.6]} 11... Bxh3 {[%clk 0:01:40.6]} 12. gxh3 {[%clk 0:01:38.9]}
12... e3 {[%clk 0:01:41.8]} 13. Qxc5 {[%clk 0:00:24.7]} 13... Qxh1+ {[%clk
0:01:36.3]} 14. Ke2 {[%clk 0:00:24.1]} 14... exf2 {[%clk 0:01:22.9]} 15. Qe5+
{[%clk 0:00:20.6]} 15... Kf8 {[%clk 0:01:20.7]} 16. Qf4 {[%clk 0:00:19.2]} 16...
Re8+ {[%clk 0:01:07.6]} 0-1